[Event "European Amateur-ch U1700 2019"]
[Site "Rhodes"]
[Date "2019.04.08"]
[Round "3.8"]
[White "Badrakova, Kseniya"]
[Black "Karali, Panagiota"]
[Result "1-0"]
[ECO "C29"]
[WhiteElo "1435"]
[BlackElo "1191"]
[Annotator "NA"]
[PlyCount "27"]
[EventDate "2019.04.06"]
[EventType "swiss"]
[EventCountry "GRE"]
[SourceTitle "playchess.com"]
[Source "ChessBase"]
[SourceQuality "1"]
[TimeControl "40/5400+30:1800+30"]

1. e4 {[%emt 0:00:00]} e5 {[%emt 0:00:00]} 2. Nc3 {[%emt 0:00:00]} Nf6 {[%emt 0:02:02]} 3. f4 {[%emt 0:00:25]} exf4 {[%emt 0:02:10]} 4. e5 {[%emt 0:00:08]} Qe7 {[%emt 0:03:27]} 5. Qe2 {[%emt 0:01:02]} Ng8 {[%emt 0:02:41]} 6. Nf3 {[%emt 0:00:37]} Nc6 {[%emt 0:00:57]} 7. Nd5 {[%emt 0:01:57]} Qd8 {[%emt 0:05:33]} 8. d4 {[%emt 0:04:19]} g5 {[%emt 0:02:49]} 9. Nf6+ {[%emt 0:10:17]} Ke7 {[%emt 0:03:37]} 10. d5 {[%emt 0:12:50]} Nb4 {[%emt 0:06:15]} 11. a3 {[%emt 0:02:19]} Na6 {[%emt 0:00:26]} 12. Nxg5 {[%emt 0:09:26]} Nxf6 {[%emt 0:03:04]} 13. d6+ {[%emt 0:02:50]} cxd6 {[%emt 0:00:37]} 14. exd6+ {[%emt 0:00:20]} 1-0

[Event "European Amateur-ch U1700 2019"]
[Site "Rhodes"]
[Date "2019.04.08"]
[Round "3.9"]
[White "Stathatos, Alexandros"]
[Black "Pantelic, Slobodan"]
[Result "1-0"]
[ECO "B06"]
[WhiteElo "1184"]
[BlackElo "1646"]
[Annotator "NA"]
[PlyCount "98"]
[EventDate "2019.04.06"]
[EventType "swiss"]
[EventCountry "GRE"]
[SourceTitle "playchess.com"]
[Source "ChessBase"]
[SourceQuality "1"]
[TimeControl "40/5400+30:1800+30"]

1. e4 {[%emt 0:00:00]} g6 {[%emt 0:00:00]} 2. d4 {[%emt 0:00:08]} Bg7 {[%emt 0:00:00]} 3. Nf3 {[%emt 0:00:17]} d6 {[%emt 0:00:00]} 4. h3 {[%emt 0:00:55]} c5 {[%emt 0:00:00]} 5. Be3 {[%emt 0:02:46]} cxd4 {[%emt 0:00:05]} 6. Bxd4 {[%emt 0:00:46]} Nf6 {[%emt 0:00:01]} 7. Bd3 {[%emt 0:01:50]} O-O {[%emt 0:00:04]} 8. O-O {[%emt 0:00:08]} Nc6 {[%emt 0:00:01]} 9. Bc3 {[%emt 0:00:40]} Qc7 {[%emt 0:00:03]} 10. Nbd2 {[%emt 0:01:23]} a6 {[%emt 0:00:01]} 11. a3 {[%emt 0:00:56]} b5 {[%emt 0:00:02]} 12. Re1 {[%emt 0:00:31]} Ne5 {[%emt 0:00:02]} 13. Nxe5 {[%emt 0:00:27]} dxe5 {[%emt 0:00:03]} 14. Nf3 {[%emt 0:00:28]} Nh5 {[%emt 0:00:10]} 15. Qd2 {[%emt 0:01:57]} Bb7 {[%emt 0:00:12]} 16. Rad1 {[%emt 0:01:38]} Nf4 {[%emt 0:00:06]} 17. Bf1 {[%emt 0:01:20]} Rfd8 {[%emt 0:00:04]} 18. Qe3 {[%emt 0:00:40]} Rxd1 {[%emt 0:00:03]} 19. Rxd1 {[%emt 0:00:15]} Rd8 {[%emt 0:00:01]} 20. Rxd8+ {[%emt 0:00:23]} Qxd8 {[%emt 0:00:03]} 21. Bxe5 {[%emt 0:00:35]} Ne6 {[%emt 0:00:12]} 22. Bxg7 {[%emt 0:01:17]} Kxg7 {[%emt 0:00:03]} 23. Bd3 {[%emt 0:00:56]} Qc7 {[%emt 0:00:05]} 24. Kf1 {[%emt 0:02:48]} f6 {[%emt 0:00:25]} 25. Nd4 {[%emt 0:02:38]} Nf4 {[%emt 0:00:16]} 26. Qxf4 {[%emt 0:00:11]} e5 {[%emt 0:00:04]} 27. Ne6+ {[%emt 0:00:12]} Kf7 {[%emt 0:00:13]} 28. Qxf6+ {[%emt 0:00:13]} Kxf6 {[%emt 0:00:03]} 29. Nxc7 {[%emt 0:00:15]} Bc8 {[%emt 0:01:32]} 30. c4 {[%emt 0:00:47]} bxc4 {[%emt 0:00:14]} 31. Bxc4 {[%emt 0:00:05]} a5 {[%emt 0:00:02]} 32. Nd5+ {[%emt 0:00:33]} Kg5 {[%emt 0:00:05]} 33. b4 {[%emt 0:01:10]} axb4 {[%emt 0:00:08]} 34. axb4 {[%emt 0:00:21]} Bb7 {[%emt 0:00:13]} 35. b5 {[%emt 0:00:18]} h5 {[%emt 0:00:03]} 36. b6 {[%emt 0:00:11]} h4 {[%emt 0:00:03]} 37. f3 {[%emt 0:00:22]} Kh5 {[%emt 0:00:39]} 38. Nc7 {[%emt 0:00:12]} g5 {[%emt 0:00:07]} 39. Ba6 {[%emt 0:00:35]} Bc6 {[%emt 0:00:07]} 40. b7 {[%emt 0:00:00]} Bxb7 {[%emt 0:00:00]} 41. Bxb7 {[%emt 0:00:12]} g4 {[%emt 0:00:18]} 42. fxg4+ {[%emt 0:00:42]} Kg5 {[%emt 0:00:03]} 43. Ne6+ {[%emt 0:00:50]} Kf6 {[%emt 0:00:02]} 44. Bd5 {[%emt 0:00:24]} Kg6 {[%emt 0:00:08]} 45. g5 {[%emt 0:00:24]} Kh5 {[%emt 0:00:04]} 46. Kf2 {[%emt 0:00:43]} Kg6 {[%emt 0:00:05]} 47. Kf3 {[%emt 0:01:10]} Kh5 {[%emt 0:00:01]} 48. Bc6 {[%emt 0:00:27]} Kg6 {[%emt 0:00:06]} 49. Bd7 {[%emt 0:00:25]} Kf7 {[%emt 0:00:03]} 1-0

[Event "European Amateur-ch U1700 2019"]
[Site "Rhodes"]
[Date "2019.04.09"]
[Round "4.1"]
[White "Pereverzev, Timofei"]
[Black "Kostov, Kiril"]
[Result "1-0"]
[ECO "B85"]
[WhiteElo "1463"]
[BlackElo "1625"]
[Annotator "NA"]
[PlyCount "53"]
[EventDate "2019.04.06"]
[EventType "swiss"]
[EventCountry "GRE"]
[SourceTitle "playchess.com"]
[Source "ChessBase"]
[SourceQuality "1"]
[TimeControl "40/5400+30:1800+30"]

1. e4 {[%emt 0:00:00]} c5 {[%emt 0:00:24]} 2. Nf3 {[%emt 0:00:00]} d6 {[%emt 0:00:58]} 3. d4 {[%emt 0:01:26]} cxd4 {[%emt 0:00:37]} 4. Nxd4 {[%emt 0:01:47]} Nf6 {[%emt 0:00:44]} 5. Nc3 {[%emt 0:00:55]} a6 {[%emt 0:01:09]} 6. Be2 {[%emt 0:01:07]} e6 {[%emt 0:00:31]} 7. O-O {[%emt 0:00:27]} Be7 {[%emt 0:01:39]} 8. f4 {[%emt 0:00:41]} Nbd7 {[%emt 0:00:54]} 9. Be3 {[%emt 0:00:25]} O-O {[%emt 0:00:34]} 10. Kh1 {[%emt 0:00:13]} Qc7 {[%emt 0:00:34]} 11. g4 {[%emt 0:01:29]} Nb6 {[%emt 0:00:29]} 12. g5 {[%emt 0:00:46]} Nfd7 {[%emt 0:00:41]} 13. Rf3 {[%emt 0:04:57]} Rd8 {[%emt 0:04:44]} 14. Rh3 {[%emt 0:00:25]} Nf8 {[%emt 0:00:22]} 15. f5 {[%emt 0:03:25]} Nc4 {[%emt 0:02:06]} 16. Bxc4 {[%emt 0:00:12]} Qxc4 {[%emt 0:00:06]} 17. Qh5 {[%emt 0:00:30]} b5 {[%emt 0:05:43]} 18. Rg1 {[%emt 0:00:08]} g6 {[%emt 0:04:12]} 19. Qh6 {[%emt 0:01:57]} exf5 {[%emt 0:00:59]} 20. Nd5 {[%emt 0:00:12]} Bb7 {[%emt 0:13:06]} 21. Nf6+ {[%emt 0:00:35]} Bxf6 {[%emt 0:00:30]} 22. gxf6 {[%emt 0:00:06]} Bxe4+ {[%emt 0:01:34]} 23. Nf3 {[%emt 0:00:27]} Bxf3+ {[%emt 0:00:22]} 24. Rxf3 {[%emt 0:00:04]} Ne6 {[%emt 0:00:10]} 25. Rh3 {[%emt 0:00:28]} Qd5+ {[%emt 0:16:50]} 26. Rg2 {[%emt 0:00:24]} Qd1+ {[%emt 0:00:10]} 27. Bg1 {[%emt 0:00:04]} 1-0

[Event "European Amateur-ch U1700 2019"]
[Site "Rhodes"]
[Date "2019.04.09"]
[Round "4.2"]
[White "Grishina, Zhanna"]
[Black "Ruzic, Milos"]
[Result "0-1"]
[ECO "B07"]
[WhiteElo "1482"]
[BlackElo "1674"]
[Annotator "NA"]
[PlyCount "94"]
[EventDate "2019.04.06"]
[EventType "swiss"]
[EventCountry "GRE"]
[SourceTitle "playchess.com"]
[Source "ChessBase"]
[SourceQuality "1"]
[TimeControl "40/5400+30:1800+30"]

1. d4 {[%emt 0:00:00]} d6 {[%emt 0:00:00]} 2. e4 {[%emt 0:00:51]} Nf6 {[%emt 0:00:00]} 3. Bd3 {[%emt 0:00:57]} g6 {[%emt 0:01:07]} 4. Nf3 {[%emt 0:01:19]} Bg7 {[%emt 0:00:21]} 5. h3 {[%emt 0:00:38]} c6 {[%emt 0:00:23]} 6. Be3 {[%emt 0:01:08]} Qc7 {[%emt 0:01:21]} 7. Qd2 {[%emt 0:00:42]} e5 {[%emt 0:02:13]} 8. Bh6 {[%emt 0:05:22]} O-O {[%emt 0:00:15]} 9. g4 {[%emt 0:06:42]} Re8 {[%emt 0:00:50]} 10. Bxg7 {[%emt 0:07:17]} Kxg7 {[%emt 0:00:49]} 11. dxe5 {[%emt 0:00:42]} dxe5 {[%emt 0:00:12]} 12. Nc3 {[%emt 0:01:18]} Nbd7 {[%emt 0:01:02]} 13. O-O-O {[%emt 0:08:58]} Nc5 {[%emt 0:01:32]} 14. Rdg1 {[%emt 0:04:30]} b5 {[%emt 0:00:57]} 15. a3 {[%emt 0:16:10]} a5 {[%emt 0:01:20]} 16. Qe3 {[%emt 0:02:07]} Nxd3+ {[%emt 0:04:25]} 17. Qxd3 {[%emt 0:00:09]} Ba6 {[%emt 0:01:25]} 18. Qe3 {[%emt 0:00:48]} b4 {[%emt 0:00:58]} 19. axb4 {[%emt 0:00:28]} axb4 {[%emt 0:00:09]} 20. Nb1 {[%emt 0:01:40]} c5 {[%emt 0:02:54]} 21. h4 {[%emt 0:02:37]} Bb7 {[%emt 0:01:41]} 22. h5 {[%emt 0:00:37]} Nxe4 {[%emt 0:01:01]} 23. hxg6 {[%emt 0:00:16]} fxg6 {[%emt 0:00:19]} 24. Qh6+ {[%emt 0:00:22]} Kg8 {[%emt 0:00:05]} 25. Nh4 {[%emt 0:02:44]} Qg7 {[%emt 0:04:18]} 26. Qe3 {[%emt 0:04:15]} Qf8 {[%emt 0:03:53]} 27. f3 {[%emt 0:02:38]} Nf6 {[%emt 0:02:09]} 28. Rh3 {[%emt 0:04:43]} Nd5 {[%emt 0:00:32]} 29. Qe1 {[%emt 0:09:11]} Qf4+ {[%emt 0:01:08]} 30. Qd2 {[%emt 0:01:25]} Red8 {[%emt 0:11:12]} 31. Qxf4 {[%emt 0:04:22]} Nxf4 {[%emt 0:00:38]} 32. Rh2 {[%emt 0:00:18]} g5 {[%emt 0:00:39]} 33. Nf5 {[%emt 0:00:47]} Bxf3 {[%emt 0:00:15]} 34. b3 {[%emt 0:02:00]} Ne2+ {[%emt 0:00:44]} 35. Rxe2 {[%emt 0:00:28]} Bxe2 {[%emt 0:00:18]} 36. Ne7+ {[%emt 0:01:52]} Kg7 {[%emt 0:03:08]} 37. Nf5+ {[%emt 0:01:02]} Kf6 {[%emt 0:00:39]} 38. Rg2 {[%emt 0:01:26]} Bxg4 {[%emt 0:00:49]} 39. Ne3 {[%emt 0:01:20]} Bf3 {[%emt 0:01:18]} 40. Rf2 {[%emt 0:00:00]} e4 {[%emt 0:00:00]} 41. Nd2 {[%emt 0:01:43]} Rxd2 {[%emt 0:01:52]} 42. Kxd2 {[%emt 0:00:11]} Rd8+ {[%emt 0:00:04]} 43. Kc1 {[%emt 0:00:42]} h5 {[%emt 0:00:09]} 44. Ng2 {[%emt 0:01:58]} Ke5 {[%emt 0:02:16]} 45. Ne3 {[%emt 0:00:35]} Kf4 {[%emt 0:00:13]} 46. Nf1 {[%emt 0:00:45]} Rd1+ {[%emt 0:00:44]} 47. Kb2 {[%emt 0:00:06]} e3 {[%emt 0:00:26]} 0-1

[Event "European Amateur-ch U1700 2019"]
[Site "Rhodes"]
[Date "2019.04.09"]
[Round "4.3"]
[White "Badrakova, Kseniya"]
[Black "Kanev, Evgeny"]
[Result "1/2-1/2"]
[ECO "B08"]
[WhiteElo "1435"]
[BlackElo "1629"]
[Annotator "NA"]
[PlyCount "58"]
[EventDate "2019.04.06"]
[EventType "swiss"]
[EventCountry "GRE"]
[SourceTitle "playchess.com"]
[Source "ChessBase"]
[SourceQuality "1"]
[TimeControl "40/5400+30:1800+30"]

1. e4 {[%emt 0:00:00]} d6 {[%emt 0:00:00]} 2. d4 {[%emt 0:00:00]} Nf6 {[%emt 0:00:00]} 3. Nc3 {[%emt 0:00:00]} g6 {[%emt 0:00:00]} 4. Nf3 {[%emt 0:00:03]} Bg7 {[%emt 0:00:00]} 5. Be2 {[%emt 0:01:18]} O-O {[%emt 0:00:00]} 6. O-O {[%emt 0:00:04]} Nc6 {[%emt 0:00:00]} 7. h3 {[%emt 0:00:42]} Nd7 {[%emt 0:00:00]} 8. Be3 {[%emt 0:01:30]} e5 {[%emt 0:00:00]} 9. d5 {[%emt 0:05:59]} Ne7 {[%emt 0:00:00]} 10. Nh2 {[%emt 0:02:52]} f5 {[%emt 0:00:00]} 11. Rb1 {[%emt 0:03:36]} f4 {[%emt 0:01:09]} 12. Bc1 {[%emt 0:01:15]} g5 {[%emt 0:04:26]} 13. Bg4 {[%emt 0:06:14]} Nf6 {[%emt 0:09:46]} 14. Bxc8 {[%emt 0:14:35]} Qxc8 {[%emt 0:00:02]} 15. Nf3 {[%emt 0:02:29]} h6 {[%emt 0:08:13]} 16. Kh2 {[%emt 0:04:53]} Ng6 {[%emt 0:01:13]} 17. g4 {[%emt 0:19:43]} Nxg4+ {[%emt 0:00:47]} 18. hxg4 {[%emt 0:02:23]} Qxg4 {[%emt 0:00:01]} 19. Rh1 {[%emt 0:08:19]} Nh4 {[%emt 0:00:48]} 20. Nxh4 {[%emt 0:00:37]} f3 {[%emt 0:00:17]} 21. Qf1 {[%emt 0:01:46]} Qxh4+ {[%emt 0:01:28]} 22. Kg1 {[%emt 0:00:37]} Qg4+ {[%emt 0:02:53]} 23. Kh2 {[%emt 0:00:05]} Rf4 {[%emt 0:35:19]} 24. Bxf4 {[%emt 0:07:25]} Qxf4+ {[%emt 0:00:01]} 25. Kg1 {[%emt 0:00:08]} Qg4+ {[%emt 0:18:44]} 26. Kh2 {[%emt 0:00:08]} Qh4+ {[%emt 0:00:09]} 27. Kg1 {[%emt 0:00:06]} Qg4+ {[%emt 0:00:21]} 28. Kh2 {[%emt 0:00:06]} Qf4+ {[%emt 0:03:48]} 29. Kg1 {[%emt 0:00:07]} Rf8 {[%emt 0:13:06]} 1/2-1/2

[Event "European Amateur-ch U1700 2019"]
[Site "Rhodes"]
[Date "2019.04.09"]
[Round "4.4"]
[White "Taddia, Davide"]
[Black "Stathatos, Alexandros"]
[Result "0-1"]
[ECO "A09"]
[WhiteElo "1519"]
[BlackElo "1184"]
[Annotator "NA"]
[PlyCount "132"]
[EventDate "2019.04.06"]
[EventType "swiss"]
[EventCountry "GRE"]
[SourceTitle "playchess.com"]
[Source "ChessBase"]
[SourceQuality "1"]
[TimeControl "40/5400+30:1800+30"]

1. Nf3 {[%emt 0:00:00]} d5 {[%emt 0:00:00]} 2. c4 {[%emt 0:00:04]} c5 {[%emt 0:00:17]} 3. cxd5 {[%emt 0:00:23]} Qxd5 {[%emt 0:02:36]} 4. Nc3 {[%emt 0:01:24]} Qd8 {[%emt 0:00:25]} 5. g3 {[%emt 0:00:24]} Nc6 {[%emt 0:00:38]} 6. Bg2 {[%emt 0:00:38]} e6 {[%emt 0:00:59]} 7. O-O {[%emt 0:00:37]} Nf6 {[%emt 0:00:07]} 8. b3 {[%emt 0:05:13]} Be7 {[%emt 0:01:23]} 9. Bb2 {[%emt 0:00:35]} O-O {[%emt 0:00:18]} 10. Qc1 {[%emt 0:02:17]} Qc7 {[%emt 0:03:29]} 11. Nb5 {[%emt 0:06:10]} Qb6 {[%emt 0:04:45]} 12. Na3 {[%emt 0:02:30]} Nd7 {[%emt 0:01:23]} 13. Nc4 {[%emt 0:04:56]} Qc7 {[%emt 0:00:21]} 14. d4 {[%emt 0:01:07]} cxd4 {[%emt 0:03:36]} 15. Nxd4 {[%emt 0:00:32]} Nxd4 {[%emt 0:00:22]} 16. Bxd4 {[%emt 0:01:38]} Bf6 {[%emt 0:01:01]} 17. Rd1 {[%emt 0:02:25]} Rd8 {[%emt 0:03:00]} 18. Bxf6 {[%emt 0:05:45]} Nxf6 {[%emt 0:00:40]} 19. Nd6 {[%emt 0:00:17]} Qb6 {[%emt 0:09:50]} 20. Qa3 {[%emt 0:07:04]} a5 {[%emt 0:06:02]} 21. Rac1 {[%emt 0:07:16]} h6 {[%emt 0:02:06]} 22. Nxc8 {[%emt 0:04:34]} Raxc8 {[%emt 0:00:55]} 23. Rxc8 {[%emt 0:02:48]} Rxc8 {[%emt 0:04:02]} 24. Qe7 {[%emt 0:03:41]} Rc7 {[%emt 0:03:42]} 25. Qd8+ {[%emt 0:03:42]} Kh7 {[%emt 0:00:12]} 26. Bf3 {[%emt 0:00:23]} Qc5 {[%emt 0:02:45]} 27. Qd3+ {[%emt 0:02:03]} Kg8 {[%emt 0:00:35]} 28. Qd8+ {[%emt 0:00:13]} Kh7 {[%emt 0:00:54]} 29. Qd3+ {[%emt 0:01:48]} Kg8 {[%emt 0:00:09]} 30. h4 {[%emt 0:01:11]} Rd7 {[%emt 0:01:31]} 31. Qb1 {[%emt 0:00:48]} Qf5 {[%emt 0:01:38]} 32. Qc1 {[%emt 0:01:46]} Rxd1+ {[%emt 0:06:35]} 33. Qxd1 {[%emt 0:00:13]} Qb5 {[%emt 0:00:46]} 34. Qd8+ {[%emt 0:01:58]} Kh7 {[%emt 0:01:47]} 35. Qe7 {[%emt 0:01:09]} Qe5 {[%emt 0:01:10]} 36. Qxb7 {[%emt 0:02:16]} Qa1+ {[%emt 0:00:22]} 37. Kg2 {[%emt 0:00:16]} Qxa2 {[%emt 0:00:18]} 38. Qb5 {[%emt 0:02:22]} Kg8 {[%emt 0:00:51]} 39. g4 {[%emt 0:02:36]} Qd2 {[%emt 0:01:58]} 40. Qb8+ {[%emt 0:00:00]} Kh7 {[%emt 0:00:00]} 41. Qb5 {[%emt 0:01:54]} Kg8 {[%emt 0:03:45]} 42. Qc4 {[%emt 0:06:26]} Kh7 {[%emt 0:08:58]} 43. e3 {[%emt 0:01:43]} Nd5 {[%emt 0:01:25]} 44. Be4+ {[%emt 0:03:43]} g6 {[%emt 0:01:14]} 45. Bxd5 {[%emt 0:04:10]} Qxd5+ {[%emt 0:02:30]} 46. Qxd5 {[%emt 0:01:02]} exd5 {[%emt 0:00:06]} 47. Kf3 {[%emt 0:00:24]} Kg7 {[%emt 0:03:31]} 48. Kf4 {[%emt 0:01:41]} Kf6 {[%emt 0:00:08]} 49. g5+ {[%emt 0:02:27]} hxg5+ {[%emt 0:00:10]} 50. hxg5+ {[%emt 0:00:10]} Ke6 {[%emt 0:00:11]} 51. Kg4 {[%emt 0:07:07]} Kd6 {[%emt 0:02:13]} 52. f3 {[%emt 0:00:50]} Kc5 {[%emt 0:00:55]} 53. Kf4 {[%emt 0:01:43]} d4 {[%emt 0:06:07]} 54. exd4+ {[%emt 0:10:44]} Kxd4 {[%emt 0:00:13]} 55. Kg4 {[%emt 0:00:05]} Kc3 {[%emt 0:00:16]} 56. f4 {[%emt 0:00:05]} Kxb3 {[%emt 0:00:10]} 57. f5 {[%emt 0:00:07]} a4 {[%emt 0:00:55]} 58. fxg6 {[%emt 0:00:31]} fxg6 {[%emt 0:00:08]} 59. Kf4 {[%emt 0:00:36]} a3 {[%emt 0:00:05]} 60. Ke5 {[%emt 0:00:30]} a2 {[%emt 0:00:10]} 61. Kf6 {[%emt 0:00:16]} a1=Q+ {[%emt 0:00:29]} 62. Kxg6 {[%emt 0:00:18]} Qh8 {[%emt 0:00:11]} 63. Kf7 {[%emt 0:00:55]} Qh7+ {[%emt 0:00:07]} 64. Kf6 {[%emt 0:00:27]} Kc4 {[%emt 0:00:18]} 65. g6 {[%emt 0:00:12]} Qg8 {[%emt 0:00:06]} 66. g7 {[%emt 0:01:50]} Kd5 {[%emt 0:00:09]} 0-1

[Event "European Amateur-ch U1700 2019"]
[Site "Rhodes"]
[Date "2019.04.09"]
[Round "4.5"]
[White "Snokowski, Marcin"]
[Black "Cebo, Vladimir"]
[Result "1-0"]
[ECO "A07"]
[WhiteElo "1659"]
[BlackElo "1602"]
[Annotator "NA"]
[PlyCount "59"]
[EventDate "2019.04.06"]
[EventType "swiss"]
[EventCountry "GRE"]
[SourceTitle "playchess.com"]
[Source "ChessBase"]
[SourceQuality "1"]
[TimeControl "40/5400+30:1800+30"]

1. Nf3 {[%emt 0:00:00]} d5 {[%emt 0:00:00]} 2. d3 {[%emt 0:00:00]} c6 {[%emt 0:01:58]} 3. g3 {[%emt 0:00:07]} e6 {[%emt 0:00:17]} 4. Bg2 {[%emt 0:00:26]} Nf6 {[%emt 0:00:27]} 5. O-O {[%emt 0:00:20]} Be7 {[%emt 0:00:27]} 6. c3 {[%emt 0:02:07]} O-O {[%emt 0:00:38]} 7. Nbd2 {[%emt 0:01:07]} Nbd7 {[%emt 0:01:22]} 8. Re1 {[%emt 0:02:56]} Bc5 {[%emt 0:04:43]} 9. d4 {[%emt 0:01:35]} Bb6 {[%emt 0:01:45]} 10. e4 {[%emt 0:00:24]} dxe4 {[%emt 0:02:00]} 11. Nxe4 {[%emt 0:00:13]} Nxe4 {[%emt 0:00:22]} 12. Rxe4 {[%emt 0:00:10]} e5 {[%emt 0:12:25]} 13. Nxe5 {[%emt 0:05:55]} Nf6 {[%emt 0:08:03]} 14. Bg5 {[%emt 0:03:29]} h6 {[%emt 0:02:00]} 15. Bxf6 {[%emt 0:00:27]} Qxf6 {[%emt 0:00:35]} 16. Qh5 {[%emt 0:09:11]} Qf5 {[%emt 0:13:05]} 17. Qe2 {[%emt 0:08:17]} Be6 {[%emt 0:01:49]} 18. Rf4 {[%emt 0:00:39]} Qg5 {[%emt 0:01:11]} 19. h4 {[%emt 0:00:22]} Qd8 {[%emt 0:10:26]} 20. Be4 {[%emt 0:05:17]} Bc7 {[%emt 0:01:24]} 21. Bc2 {[%emt 0:01:55]} Bxe5 {[%emt 0:03:57]} 22. dxe5 {[%emt 0:04:09]} Qe8 {[%emt 0:04:57]} 23. Qe4 {[%emt 0:04:11]} g6 {[%emt 0:00:59]} 24. Rf6 {[%emt 0:00:38]} h5 {[%emt 0:03:34]} 25. Rd1 {[%emt 0:08:13]} Kg7 {[%emt 0:01:11]} 26. Qf4 {[%emt 0:11:58]} Qe7 {[%emt 0:04:09]} 27. Qg5 {[%emt 0:00:59]} Qe8 {[%emt 0:01:16]} 28. Rd6 {[%emt 0:00:47]} Rg8 {[%emt 0:11:23]} 29. Rdxe6 {[%emt 0:02:14]} fxe6 {[%emt 0:04:08]} 30. Rxg6+ {[%emt 0:00:18]} 1-0

[Event "European Amateur-ch U1700 2019"]
[Site "Rhodes"]
[Date "2019.04.09"]
[Round "4.6"]
[White "Minko, Uliana"]
[Black "Buzescu, Vladimir"]
[Result "0-1"]
[ECO "A16"]
[WhiteElo "1315"]
[BlackElo "1620"]
[Annotator "NA"]
[PlyCount "68"]
[EventDate "2019.04.06"]
[EventType "swiss"]
[EventCountry "GRE"]
[SourceTitle "playchess.com"]
[Source "ChessBase"]
[SourceQuality "1"]
[TimeControl "40/5400+30:1800+30"]

1. c4 {[%emt 0:00:00]} Nf6 {[%emt 0:00:00]} 2. Nc3 {[%emt 0:00:00]} g6 {[%emt 0:00:00]} 3. Nf3 {[%emt 0:00:04]} Bg7 {[%emt 0:00:03]} 4. a3 {[%emt 0:00:16]} O-O {[%emt 0:00:21]} 5. g3 {[%emt 0:00:10]} c6 {[%emt 0:00:14]} 6. Bg2 {[%emt 0:00:06]} d5 {[%emt 0:00:13]} 7. cxd5 {[%emt 0:00:13]} cxd5 {[%emt 0:00:08]} 8. Rb1 {[%emt 0:00:15]} Bf5 {[%emt 0:01:00]} 9. d3 {[%emt 0:00:14]} Nc6 {[%emt 0:00:18]} 10. O-O {[%emt 0:00:14]} e5 {[%emt 0:01:15]} 11. Nd2 {[%emt 0:00:30]} e4 {[%emt 0:03:02]} 12. dxe4 {[%emt 0:01:56]} dxe4 {[%emt 0:00:31]} 13. Ncxe4 {[%emt 0:00:18]} Nxe4 {[%emt 0:00:20]} 14. Nxe4 {[%emt 0:00:38]} Qe7 {[%emt 0:04:45]} 15. f3 {[%emt 0:00:43]} Rfd8 {[%emt 0:04:03]} 16. Bd2 {[%emt 0:04:56]} Bd4+ {[%emt 0:04:49]} 17. Kh1 {[%emt 0:00:39]} Be3 {[%emt 0:01:02]} 18. Ra1 {[%emt 0:03:07]} Bxe4 {[%emt 0:01:10]} 19. fxe4 {[%emt 0:00:30]} Rxd2 {[%emt 0:02:53]} 20. Qa4 {[%emt 0:04:35]} Rxe2 {[%emt 0:08:37]} 21. Rae1 {[%emt 0:01:38]} Rxe1 {[%emt 0:02:21]} 22. Rxe1 {[%emt 0:00:13]} Bb6 {[%emt 0:00:28]} 23. b4 {[%emt 0:00:56]} Rd8 {[%emt 0:01:13]} 24. b5 {[%emt 0:01:28]} Ne5 {[%emt 0:00:22]} 25. Qb3 {[%emt 0:01:55]} Ng4 {[%emt 0:01:35]} 26. h4 {[%emt 0:02:20]} h5 {[%emt 0:08:38]} 27. Qb2 {[%emt 0:05:30]} Bd4 {[%emt 0:02:07]} 28. Qb3 {[%emt 0:02:32]} Bf2 {[%emt 0:03:24]} 29. Rb1 {[%emt 0:03:02]} Qe5 {[%emt 0:01:39]} 30. Bf3 {[%emt 0:02:22]} Ne3 {[%emt 0:02:07]} 31. Rg1 {[%emt 0:05:12]} Bxg1 {[%emt 0:00:30]} 32. Kxg1 {[%emt 0:00:10]} Qxg3+ {[%emt 0:00:21]} 33. Kh1 {[%emt 0:00:15]} Qxf3+ {[%emt 0:00:14]} 34. Kg1 {[%emt 0:00:44]} Qg2# {[%emt 0:00:04]} 0-1

[Event "European Amateur-ch U1700 2019"]
[Site "Rhodes"]
[Date "2019.04.09"]
[Round "4.7"]
[White "Kalpakidis, Daniel Kyriakos"]
[Black "Meremyanina, Kseniya"]
[Result "0-1"]
[ECO "A06"]
[WhiteElo "1211"]
[BlackElo "1577"]
[Annotator "NA"]
[PlyCount "44"]
[EventDate "2019.04.06"]
[EventType "swiss"]
[EventCountry "GRE"]
[SourceTitle "playchess.com"]
[Source "ChessBase"]
[SourceQuality "1"]
[TimeControl "40/5400+30:1800+30"]

1. d4 {[%emt 0:00:00]} d5 {[%emt 0:00:00]} 2. b3 {[%emt 0:00:00]} c6 {[%emt 0:00:54]} 3. Bb2 {[%emt 0:00:00]} Bf5 {[%emt 0:00:58]} 4. Nf3 {[%emt 0:00:00]} Nf6 {[%emt 0:00:50]} 5. e3 {[%emt 0:00:23]} Nbd7 {[%emt 0:02:10]} 6. Be2 {[%emt 0:00:14]} h6 {[%emt 0:00:23]} 7. O-O {[%emt 0:00:10]} e6 {[%emt 0:00:13]} 8. Nbd2 {[%emt 0:00:16]} Bd6 {[%emt 0:03:27]} 9. Ne5 {[%emt 0:00:10]} O-O {[%emt 0:01:07]} 10. f4 {[%emt 0:04:28]} c5 {[%emt 0:06:34]} 11. Rf3 {[%emt 0:00:00]} cxd4 {[%emt 0:02:41]} 12. exd4 {[%emt 0:00:00]} Qb6 {[%emt 0:01:05]} 13. Kh1 {[%emt 0:00:00]} Rac8 {[%emt 0:00:42]} 14. c4 {[%emt 0:00:00]} Bb4 {[%emt 0:03:45]} 15. Kg1 {[%emt 0:07:16]} Bxd2 {[%emt 0:00:55]} 16. Qxd2 {[%emt 0:00:21]} Nxe5 {[%emt 0:01:07]} 17. fxe5 {[%emt 0:00:19]} Ne4 {[%emt 0:00:09]} 18. Qe1 {[%emt 0:03:39]} dxc4 {[%emt 0:00:36]} 19. Bxc4 {[%emt 0:00:24]} Rxc4 {[%emt 0:00:09]} 20. Ba3 {[%emt 0:02:50]} Rxd4 {[%emt 0:00:27]} 21. Kh1 {[%emt 0:00:36]} Rfd8 {[%emt 0:00:28]} 22. Bc1 {[%emt 0:05:31]} Rd1 {[%emt 0:00:12]} 0-1